bitfinex-derivatives/quotes_ETHF0:USTF0_20251119
["timestamp","ask_amount","ask_price","bid_price","bid_amount"]
[1763535193869,0.2325,3043.6,3043.5,3.2078]
[1763535194072,0.68114,3044.0,3043.5,3.4545]
[1763535194374,0.1485,3044.0,3043.5,3.4545]
[1763535194568,0.1485,3044.0,3043.5,5.75820526]
[1763535195072,0.381,3044.0,3043.9,0.2467]
[1763535195268,0.2325,3043.7,3043.6,0.77939]
[1763535195467,0.2325,3043.9,3043.8,0.77936]
[1763535196569,0.53258,3044.4,3043.9,0.77935]
[1763535196767,0.1441616,3044.5,3043.9,0.2467]
[1763535196768,0.53258,3044.3,3043.9,0.2467]
[1763535196965,0.1485,3044.0,3043.9,0.2467]
[1763535197167,0.381,3044.0,3043.9,0.2467]
[1763535200763,0.2325,3043.7,3043.5,5.51150526]
[1763535200964,0.2325,3043.4,3043.3,3.08315526]
[1763535202375,0.381,3043.5,3043.4,0.2467]
[1763535203374,0.1485,3044.0,3043.4,0.53272]
[1763535203774,0.2472,3043.7,3043.6,0.236]
[1763535205581,0.2472,3043.3,3043.2,2.30370526]
[1763535205875,0.2472,3043.2,3043.1,3.21063433]
[1763535206666,0.1364,3043.5,3043.1,3.44663433]
[1763535207482,0.3836,3043.5,3043.4,0.236]
[1763535207966,0.3836,3043.5,3043.1,3.21063433]
[1763535208163,0.2342,3043.2,3043.1,3.44923433]
[1763535209078,0.2342,3043.2,3043.1,3.21063433]
[1763535210767,0.2342,3043.2,3043.1,0.00283433]
[1763535210978,0.76699,3043.1,3043.0,0.00493299]
[1763535211679,3.442,3043.1,3043.0,0.00493299]
[1763535211976,0.3732,3042.5,3042.4,1.98532]
[1763535212168,0.3732,3042.5,3042.4,1.98777975]
[1763535213170,0.3732,3042.5,3042.4,2.22637975]
[1763535213966,0.23913299,3042.8,3042.7,0.2386]
[1763535214269,0.00493299,3042.8,3042.7,0.2386]
[1763535214466,0.23913299,3042.8,3042.7,0.2386]
[1763535214881,0.00493299,3042.8,3042.7,0.2386]
[1763535216783,0.23913299,3042.8,3042.7,0.2386]
[1763535218481,0.3732,3042.5,3042.4,2.22637975]
[1763535218676,0.3732,3042.5,3042.4,1.66138305]
[1763535218877,0.76715,3042.2,3042.1,0.00229195]
[1763535219079,0.2342,3042.2,3042.1,0.00229195]
[1763535219285,3.442,3042.2,3042.1,0.00229195]
[1763535219780,3.44524627,3042.2,3042.1,0.00582382]
[1763535220482,3.44524627,3042.2,3042.1,6.24442382]
[1763535220483,0.00324627,3042.2,3042.1,6.24442382]
[1763535220782,0.00493299,3042.8,3042.7,0.2386]
[1763535220981,0.00493299,3042.8,3042.7,3.4464]
[1763535221783,0.00780941,3042.8,3042.7,3.4464]
[1763535223173,0.3706,3043.5,3043.4,0.2386]
[1763535225383,3.97960299,3043.8,3043.7,0.2386]
[1763535225584,3.97960299,3043.8,3043.2,0.53277]
[1763535225788,0.53269,3043.7,3043.1,3.2078]
[1763535226484,0.2342,3043.4,3043.3,0.77135]
[1763535226983,0.2342,3043.4,3043.3,0.2386]
[1763535227285,0.00493299,3043.8,3043.7,0.2386]
[1763535227585,0.00493299,3043.8,3043.7,3.4464]
[1763535230384,0.139,3044.5,3044.4,0.2386]
[1763535230576,0.3732,3044.5,3044.4,0.2427685]
[1763535231586,0.3732,3044.5,3044.4,0.0041685]
[1763535234379,0.2342,3044.2,3044.1,0.00493299]
[1763535235391,0.23749793,3044.2,3044.1,0.00813718]
[1763535237490,0.3848,3043.5,3043.4,3.2078]
[1763535237797,0.1493,3043.5,3043.4,3.4364]
[1763535238089,0.1493,3044.0,3043.4,3.4364]
[1763535238390,0.68193,3044.0,3043.5,0.53272]
[1763535238593,0.68193,3044.0,3043.5,0.53688865]
[1763535239495,0.1493,3044.0,3043.6,0.53269]
[1763535240294,0.2355,3043.8,3043.5,0.53687865]
[1763535240593,0.2355,3043.8,3043.7,0.2286]
[1763535240792,0.2355,3043.6,3043.5,0.00416865]
[1763535241389,0.2355,3043.6,3043.5,0.23276865]
[1763535242088,3.4433,3043.8,3043.7,0.2286]
[1763535242284,3.97597,3043.8,3043.5,0.00416865]
[1763535242485,3.4433,3043.8,3043.5,0.00416865]
[1763535242783,3.2078,3043.8,3043.7,0.2286]
[1763535243890,0.2355,3043.6,3043.5,0.00416865]
[1763535244092,0.2355,3043.6,3043.5,0.23276865]
[1763535245188,0.2355,3043.6,3043.5,0.00416865]
[1763535245388,3.2078,3043.8,3043.5,0.23276865]
[1763535246296,3.2078,3043.8,3043.7,0.2286]
[1763535246595,3.21109793,3044.2,3044.1,0.2286]
[1763535247292,0.53264,3044.0,3043.5,0.53687865]
[1763535247492,0.2355,3043.9,3043.8,0.53266]
[1763535247795,0.1493,3044.0,3043.9,0.2286]
[1763535248800,0.3848,3044.0,3043.6,1.16169428]
[1763535249396,0.3848,3044.0,3043.5,0.00416865]
[1763535249697,0.2355,3043.8,3043.7,0.53268]
[1763535250596,0.2355,3043.8,3043.7,0.76128]
[1763535251297,0.2355,3043.7,3043.6,0.7613]
[1763535251695,0.2355,3043.7,3043.6,0.2286]
[1763535252093,0.2355,3043.6,3043.5,0.23276865]
[1763535252397,0.2355,3043.7,3043.6,0.76129]
[1763535253992,0.2355,3043.7,3043.6,0.2286]
[1763535254197,0.1493,3044.0,3043.9,0.2286]
[1763535254393,0.2355,3043.6,3043.5,0.23276865]
[1763535255101,0.2355,3043.6,3043.5,0.76548865]
[1763535255299,0.2355,3043.6,3043.5,0.23276865]
[1763535255602,0.2355,3043.6,3043.5,0.00416865]
[1763535256189,0.2355,3043.6,3043.5,0.76548865]
[1763535257604,0.2355,3043.6,3043.5,0.23276865]
[1763535258712,0.2355,3043.6,3043.5,0.00416865]
[1763535258713,0.7682,3043.6,3043.5,0.00416865]
[1763535260305,0.2355,3043.6,3043.5,0.23276865]
[1763535260911,0.2355,3043.6,3043.5,0.00416865]
[1763535261512,0.2355,3043.6,3043.5,0.23276865]
[1763535262204,0.2355,3043.6,3043.5,0.00416865]
[1763535263114,0.2355,3043.6,3043.5,0.23146865]
[1763535263914,0.3921,3044.0,3043.5,0.53686865]
[1763535264115,0.2428,3043.7,3043.6,0.76]
[1763535265019,0.3982,3044.0,3043.9,0.2296]
[1763535269319,0.2435,3043.8,3043.7,0.75838]
[1763535269811,0.2435,3043.8,3043.7,0.53268]
[1763535270012,0.2435,3043.8,3043.7,0.75838]
[1763535270413,0.3928,3044.0,3043.9,0.2257]
[1763535270613,0.1493,3044.0,3043.9,0.2257]
[1763535271415,0.3928,3044.0,3043.9,0.2257]
[1763535272010,0.1493,3044.0,3043.6,2.32284658]
[1763535272213,0.2435,3043.6,3043.5,0.22986865]
[1763535272417,0.2435,3043.6,3043.5,2.55271523]
[1763535274213,0.2435,3043.6,3043.5,0.00416865]
[1763535276522,0.2435,3043.6,3043.5,0.22986865]
[1763535277328,0.2435,3043.6,3043.5,0.00416865]
[1763535278740,0.2435,3043.6,3043.5,0.22986865]
[1763535279026,3.4513,3043.8,3043.7,0.2257]
[1763535279217,0.2435,3043.6,3043.5,0.22986865]
[1763535280623,3.2078,3043.8,3043.5,0.22986865]
[1763535280929,0.2435,3043.6,3043.5,0.22986865]
[1763535282726,3.4513,3043.8,3043.7,0.2257]
[1763535283730,3.2078,3043.8,3043.7,0.2257]
[1763535284122,3.4513,3043.8,3043.7,0.2257]
[1763535284432,0.2435,3043.8,3043.7,0.2257]
[1763535286726,0.1493,3044.0,3043.7,0.2257]
[1763535287033,0.3928,3044.0,3043.9,0.2257]
[1763535287728,0.3928,3044.0,3043.9,0.75835]
[1763535288135,0.2435,3043.8,3043.7,0.75838]
[1763535288337,0.2435,3043.7,3043.6,2.32284658]
[1763535288628,0.2435,3043.6,3043.5,0.00416865]
[1763535288934,0.2435,3043.6,3043.5,0.22986865]
[1763535289135,0.2435,3043.6,3043.5,3.08543523]
[1763535289333,0.2435,3043.6,3043.5,0.00416865]
[1763535290338,0.2435,3042.9,3042.8,2.32284658]
[1763535290732,0.2435,3042.8,3042.7,3.08139658]
[1763535290932,0.2435,3042.8,3042.7,0.75855]
[1763535291336,0.2435,3042.8,3042.7,3.10043962]
[1763535291638,0.2435,3042.8,3042.7,2.56758962]
[1763535292036,0.3783,3043.0,3042.9,0.2257]
[1763535292235,0.00493299,3043.1,3043.0,0.75851]
[1763535292738,0.00493299,3043.1,3043.0,0.2257]
[1763535294338,0.3783,3043.0,3042.9,3.74061]
[1763535294935,0.3783,3043.0,3042.9,3.2078]
[1763535295636,0.2435,3042.8,3042.7,0.00249285]
[1763535301138,0.90859,3042.5,3042.4,0.00493299]
[1763535301646,0.3757,3042.5,3042.4,0.00493299]
[1763535302144,3.2078,3042.9,3042.4,0.00890396]
[1763535302339,3.2078,3042.9,3042.6,0.77577]
[1763535302547,3.4443,3042.9,3042.8,0.2429]
[1763535302937,3.4443,3042.9,3042.4,0.00890396]
[1763535303244,0.2365,3042.6,3042.5,0.2429]
[1763535303640,0.3757,3042.5,3042.4,0.00890396]
[1763535304339,0.3757,3042.5,3042.4,0.25180396]
[1763535307339,0.3757,3042.5,3042.4,0.00890396]
[1763535307736,0.3757,3042.5,3042.4,0.25180396]
[1763535308038,0.3757,3042.5,3042.4,0.00890396]
[1763535309847,0.3757,3042.5,3042.4,0.78471396]
[1763535310345,3.2078,3042.9,3042.4,0.00890396]
[1763535310548,3.2078,3042.9,3042.4,0.54181396]
[1763535310853,0.2365,3042.6,3042.5,0.77579]
[1763535311350,0.2365,3042.6,3042.5,0.2429]
[1763535311546,0.3757,3042.5,3042.4,0.00890396]
[1763535312652,0.90859,3042.5,3042.4,0.00890396]
[1763535315054,0.3757,3042.5,3042.4,0.00890396]
[1763535315256,0.3757,3042.5,3042.4,0.25180396]
[1763535315555,0.1392,3042.5,3042.4,0.25180396]
[1763535316551,3.4443,3042.9,3042.8,0.2429]
[1763535316749,3.97712,3042.9,3042.4,0.00890396]
[1763535317053,3.97712,3042.9,3042.5,0.53289]
[1763535317054,3.4443,3042.9,3042.5,0.53289]
[1763535318060,3.4443,3042.9,3042.6,0.53287]
[1763535318852,3.97713,3042.9,3042.4,0.54181396]
[1763535319053,3.4443,3042.9,3042.5,3.74069]
[1763535319252,3.97714,3042.9,3042.5,3.2078]
[1763535319951,0.2365,3042.9,3042.5,3.74069]
[1763535320254,0.2365,3042.6,3042.5,3.4507]
[1763535320954,0.2365,3042.6,3042.5,3.2078]
[1763535321146,0.2365,3042.6,3042.5,3.98359]
[1763535321655,0.2365,3042.6,3042.5,3.4507]
[1763535321856,0.2365,3042.6,3042.5,3.2078]
[1763535322348,0.2365,3042.6,3042.5,3.4507]
[1763535323348,0.2365,3042.6,3042.5,3.2078]
[1763535323852,0.53282,3042.9,3042.5,3.96789]
[1763535324654,0.53284,3042.8,3042.5,3.435]
[1763535324856,0.2403,3042.6,3042.5,3.435]
[1763535325344,0.2403,3042.6,3042.5,3.2078]
[1763535325746,0.2403,3042.6,3042.5,3.435]
[1763535325956,3.2078,3042.9,3042.5,3.96789]
[1763535326157,3.2078,3042.9,3042.8,0.2272]
[1763535326454,3.4481,3042.9,3042.8,0.2272]
[1763535327053,0.2403,3042.7,3042.6,0.76007]
[1763535329254,3.439,3042.9,3042.5,3.2078]
[1763535329461,0.2312,3042.6,3042.5,3.98178]
[1763535329657,3.2078,3042.9,3042.6,0.53287]
[1763535330457,3.2078,3042.9,3042.5,3.2078]
[1763535330648,3.2078,3042.9,3042.6,0.53287]
[1763535330845,0.2312,3042.7,3042.6,0.77397]
[1763535331852,3.5738,3043.0,3042.9,0.2411]
[1763535332156,3.2078,3043.0,3042.9,0.77392]
[1763535332362,0.00493299,3043.1,3043.0,0.82421]
[1763535332556,0.00493299,3043.1,3043.0,3.15018113]
[1763535333559,0.00493299,3043.1,3042.5,10.29797113]
[1763535333560,0.1445,3043.0,3042.5,10.29797113]
[1763535333749,0.3757,3043.0,3042.9,0.2411]
[1763535334058,0.23613299,3043.1,3043.0,0.2411]
[1763535334761,0.2312,3042.8,3042.7,3.4489]
[1763535334962,0.2312,3042.8,3042.7,3.98176]
[1763535335358,0.3757,3043.0,3042.9,0.77392]
[1763535336163,0.3757,3043.0,3042.9,0.2411]
[1763535336657,0.2312,3042.8,3042.7,3.98174]
[1763535336853,0.2312,3042.8,3042.7,3.4489]
[1763535337159,0.2312,3042.8,3042.7,3.98176]
[1763535339768,0.1445,3043.0,3042.7,3.98176]
[1763535340067,0.3757,3043.0,3042.9,0.2411]
[1763535340666,0.2312,3042.6,3042.5,0.2411]
[1763535340861,0.2312,3042.7,3042.6,0.77397]
[1763535341761,3.5835,3043.0,3042.9,0.2411]
[1763535341966,0.3757,3043.0,3042.9,0.2411]
[1763535342556,0.1445,3043.0,3042.9,0.2411]
[1763535342964,0.00493299,3043.1,3043.0,0.2411]
[1763535343167,0.23613299,3043.1,3043.0,0.2411]
[1763535343464,0.00493299,3043.1,3043.0,0.2411]
[1763535344365,0.00493299,3043.1,3043.0,0.77391]
[1763535344756,0.23613299,3043.1,3043.0,0.2411]
[1763535347270,0.2312,3042.9,3042.8,3.4489]
[1763535347470,0.2312,3042.9,3042.8,3.98174]
[1763535347861,0.2312,3042.9,3042.8,3.4489]
[1763535348061,0.2312,3042.9,3042.8,3.98174]
[1763535348865,0.3757,3042.5,3042.4,2.33487509]
[1763535349271,0.3757,3042.5,3042.4,0.25000396]
[1763535349463,3.74063,3042.9,3042.4,0.25000396]
[1763535349864,0.3757,3042.5,3042.4,0.25000396]
[1763535350575,0.3757,3042.5,3042.4,0.00890396]
[1763535351867,0.3757,3042.5,3042.4,0.25000396]
[1763535352875,0.3757,3042.5,3042.4,0.00890396]
[1763535359481,0.3757,3042.5,3041.8,0.533]
[1763535359482,0.232,3041.9,3041.8,0.53301]
[1763535360173,0.232,3041.9,3041.8,0.75921]
[1763535360472,0.232,3041.9,3041.8,0.2262]
[1763535360680,0.232,3041.9,3041.8,0.22974346]
[1763535360681,0.23525047,3041.9,3041.8,0.22974346]
[1763535361371,0.23525047,3041.9,3041.8,0.00354346]
[1763535361775,1.42424607,3041.9,3041.8,0.00354346]
[1763535362278,0.232,3041.6,3041.5,0.00493299]
[1763535362570,0.76505,3041.6,3041.5,0.00493299]
[1763535362778,1.92907751,3041.6,3041.5,0.00493299]
[1763535363180,1.92907751,3041.6,3041.5,0.00914936]
[1763535364279,1.39602751,3041.6,3041.5,0.00914936]
[1763535365275,1.39602751,3041.6,3041.1,3.2078]
[1763535365276,0.232,3041.2,3041.1,3.2078]
[1763535365672,0.232,3041.2,3041.1,3.434]
[1763535366270,0.232,3041.2,3041.1,3.43818496]
[1763535366474,0.232,3041.2,3041.1,3.21198496]
[1763535366681,0.232,3041.2,3041.1,3.43818496]
[1763535367486,0.232,3041.2,3041.1,3.21198496]
[1763535369583,0.232,3041.2,3041.1,3.43818496]
[1763535371082,0.76512,3041.2,3041.1,3.43818496]
[1763535371287,0.76512,3041.2,3041.1,3.21198496]
[1763535372895,0.232,3041.2,3041.1,3.43818496]
[1763535375684,0.232,3041.2,3041.1,0.23038496]
[1763535377589,0.76512,3041.2,3041.1,0.23038496]
[1763535379588,0.232,3041.2,3041.1,0.23038496]
[1763535382885,3.2078,3042.1,3041.8,0.228]
[1763535383089,0.23175047,3041.9,3041.8,0.228]
[1763535383397,0.00325047,3041.9,3041.8,0.76102]
[1763535383691,0.53294,3042.3,3041.8,4.90483751]
[1763535383989,0.2285,3041.9,3041.4,9.8458]
[1763535384192,0.2285,3041.7,3041.6,0.228]
[1763535384591,0.2309882,3041.7,3041.6,0.228]
[1763535385696,0.1485,3041.5,3041.4,3.96888]
[1763535385891,0.377,3041.5,3041.4,3.96888]
[1763535386588,0.2309882,3041.7,3041.6,0.228]
[1763535393599,0.3837,3041.5,3041.4,3.44]
[1763535395605,0.3837,3041.5,3041.4,3.2078]
[1763535396100,0.3837,3041.5,3041.4,3.44]
[1763535396597,0.3837,3041.5,3041.4,3.97309]
[1763535396896,0.0024882,3041.7,3041.6,0.2322]
[1763535398003,0.2370882,3041.7,3041.6,0.2322]
[1763535399201,0.3837,3041.5,3041.4,3.44]
[1763535399695,0.3837,3041.5,3041.4,3.97309]
[1763535400103,0.3837,3041.5,3041.4,3.44]
[1763535402405,0.91677,3041.5,3041.4,3.44]
[1763535402903,0.3837,3041.5,3041.4,3.44]
[1763535403302,0.1491,3041.5,3041.4,3.44]
[1763535403703,0.3837,3041.5,3041.4,3.44]
[1763535405801,0.1491,3041.5,3041.4,3.44]
[1763535406001,0.7701182,3041.7,3041.6,0.2322]
[1763535407199,0.2346,3041.2,3041.1,2.56235609]
[1763535407496,1.39862751,3041.2,3041.1,0.23638496]
[1763535407700,0.2346,3041.2,3041.1,0.23638496]
[1763535407897,3.9779182,3041.7,3041.6,0.2322]
[1763535408098,3.4448882,3041.7,3041.6,0.2322]
[1763535408308,3.9779182,3041.7,3041.6,0.2322]
[1763535413114,0.7701182,3041.7,3041.6,0.2322]
[1763535414416,0.3837,3041.5,3041.4,0.2322]
[1763535417519,0.2366882,3041.7,3041.6,0.2267]
[1763535417717,0.0024882,3041.7,3041.6,0.2267]
[1763535417914,0.0024882,3041.7,3041.6,0.75975]
[1763535418118,0.0024882,3041.7,3041.6,3.08572113]
[1763535422623,0.90327,3041.5,3041.4,5.53377113]
[1763535422821,0.76732,3041.2,3041.1,0.00418496]
[1763535423020,0.2342,3040.6,3040.5,2.3143995]
[1763535423319,0.136,3040.5,3040.1,3.2078]
[1763535423524,0.136,3040.5,3040.0,0.65563]
[1763535423722,0.136,3040.5,3040.1,0.53331]
[1763535424019,0.2342,3040.2,3040.1,0.00252148]
[1763535424224,0.7675,3040.2,3040.1,0.00252148]
[1763535424422,0.2342,3040.2,3040.1,0.00252148]
[1763535424818,0.2342,3040.2,3040.1,0.22922148]
[1763535425218,0.2342,3040.2,3040.1,0.00252148]
[1763535425426,0.2342,3040.2,3040.1,0.22922148]
[1763535425612,3.2078,3040.3,3040.2,0.2267]
[1763535426317,0.136,3040.5,3040.4,0.2267]
[1763535426624,0.3702,3040.5,3040.4,0.2267]
[1763535428021,0.2342,3040.2,3040.1,0.00252148]
[1763535428423,3.2078,3040.3,3040.2,0.2267]
[1763535428624,0.2342,3040.2,3040.1,0.00252148]
[1763535429424,0.2342,3040.2,3040.1,0.22922148]
[1763535429726,0.2342,3040.2,3040.1,0.00252148]
[1763535429727,1.42516776,3040.2,3040.1,0.00252148]
[1763535430230,0.76757,3039.8,3039.7,3.20454953]
[1763535430432,1.95853776,3039.8,3039.7,3.20454953]
[1763535430925,0.2342,3039.8,3039.7,3.20454953]
[1763535431233,0.2342,3039.8,3039.7,3.20873122]
[1763535433419,0.2342,3039.8,3039.7,3.43543122]
[1763535433624,3.442,3040.3,3039.9,0.53333]
[1763535433928,0.136,3040.0,3039.9,0.76003]
[1763535434125,0.136,3040.0,3039.7,3.20873122]
[1763535434126,3.2078,3040.3,3040.0,0.53332]
[1763535434931,3.442,3040.3,3040.2,0.2267]
[1763535437031,3.2078,3040.3,3040.2,0.2267]
[1763535437241,3.442,3040.3,3039.8,0.53336]
[1763535437832,0.2342,3039.9,3039.8,0.2267]
[1763535438436,0.136,3040.0,3039.9,0.2267]
[1763535438732,0.3702,3040.0,3039.9,0.2267]
[1763535443135,0.3702,3040.0,3039.7,3.20873122]
[1763535443136,0.3663,3040.5,3040.4,0.2331]
[1763535444140,0.2303,3040.3,3040.2,0.76639]
[1763535445234,0.136,3040.5,3040.4,0.2331]
[1763535445539,0.00493299,3040.6,3040.5,0.2331]
[1763535447239,0.23523299,3040.6,3040.5,0.2331]
[1763535447443,0.2303,3040.4,3040.3,0.76638]
[1763535448536,0.2494,3040.1,3040.0,0.53333]
[1763535448739,0.2494,3040.1,3040.0,0.76983]
[1763535448936,0.00493299,3040.6,3040.4,0.2365]
[1763535449140,0.25433299,3040.6,3040.5,0.2365]
[1763535449843,0.25433299,3040.6,3040.5,0.76974]
[1763535450048,0.00493299,3040.6,3040.5,0.76974]
[1763535450346,0.25433299,3040.6,3040.5,0.76974]
[1763535451346,0.00493299,3040.6,3040.5,0.76974]
[1763535453349,3.2078,3041.1,3041.0,0.76966]
[1763535453852,3.4572,3041.1,3041.0,0.2365]
[1763535455047,0.2494,3041.1,3041.0,0.2365]
[1763535457945,0.2494,3041.1,3041.0,0.76966]
[1763535460051,0.25433299,3041.4,3040.6,1.19096776]
[1763535460253,0.2494,3041.3,3041.2,0.2365]
[1763535460547,0.3943,3041.0,3040.9,0.00493299]
[1763535460753,0.3943,3041.0,3040.9,0.77460299]
[1763535462355,0.3943,3041.0,3040.9,0.53810299]
[1763535462541,0.3943,3041.0,3040.9,0.00493299]
[1763535463351,0.92746,3041.0,3040.9,0.00493299]
[1763535463751,0.3943,3041.0,3040.9,0.00493299]
[1763535471159,0.3943,3041.0,3040.9,0.53810299]
[1763535471364,0.3943,3041.0,3040.9,0.00493299]
[1763535472367,0.3943,3041.0,3040.9,0.77460299]
[1763535473571,0.3943,3041.0,3040.9,0.00493299]
[1763535474475,0.3943,3041.0,3040.9,0.53810299]
[1763535476476,0.3943,3041.0,3040.9,0.00493299]
[1763535476677,0.92746,3041.0,3040.9,0.00493299]
[1763535478770,0.3943,3041.0,3040.9,0.00493299]
[1763535481374,0.92746,3041.0,3040.9,0.00493299]
[1763535481780,0.3943,3041.0,3040.9,0.00493299]
[1763535483583,0.92746,3041.0,3040.9,0.00493299]
[1763535483784,0.3943,3041.0,3040.9,0.00493299]
[1763535484689,0.3943,3041.0,3040.9,0.53810299]
[1763535485083,0.3943,3041.0,3040.9,0.76670299]
[1763535485289,3.2078,3041.1,3041.0,0.2286]
[1763535485586,0.3737,3041.0,3040.9,0.76670299]
[1763535486181,0.3737,3041.0,3040.9,0.00493299]
[1763535486391,0.90686,3041.0,3040.9,0.00493299]
[1763535490289,1.7089063,3041.0,3040.9,0.00493299]
[1763535492585,0.3737,3041.0,3040.9,0.00493299]
[1763535492792,0.3737,3041.0,3040.9,0.23353299]
[1763535493185,0.3737,3041.0,3040.9,0.76670299]
[1763535494886,0.1409,3041.0,3040.9,0.76670299]
[1763535495391,0.3737,3041.0,3040.9,0.76670299]
[1763535496490,0.00493299,3041.4,3040.9,0.76670299]
[1763535497793,0.53311,3041.3,3040.9,0.76670299]
[1763535497984,0.53312,3041.2,3040.9,0.76670299]
[1763535498187,0.5331,3041.3,3040.9,0.76670299]
[1763535498392,0.2328,3041.1,3041.0,0.2286]
[1763535498893,0.2328,3041.1,3041.0,0.76176]
[1763535500292,0.2328,3041.1,3041.0,0.2286]
[1763535500794,0.3737,3041.0,3040.9,0.00493299]
[1763535500988,0.3737,3041.0,3040.9,0.76670299]
[1763535501985,0.3737,3041.0,3040.9,0.53810299]
[1763535503297,0.3737,3041.0,3040.9,0.00493299]
[1763535503993,0.3737,3041.0,3040.9,0.53810299]
[1763535504199,0.3737,3041.0,3040.9,0.76670299]
[1763535505896,0.1409,3041.0,3040.9,0.76670299]
[1763535506492,0.3806,3041.0,3040.9,0.76670299]
[1763535513208,0.3806,3041.0,3040.9,0.23353299]
[1763535515602,0.3806,3041.0,3040.9,0.00493299]
[1763535516907,0.3806,3041.0,3040.9,0.24333299]
[1763535517207,0.3806,3041.0,3040.9,0.77650299]
[1763535517810,0.3806,3041.0,3040.9,0.24333299]
[1763535521812,0.3806,3041.0,3040.9,0.77650299]
[1763535523914,0.53311,3041.3,3040.9,0.77650299]
[1763535524909,0.3737,3041.0,3040.9,0.77650299]
[1763535527716,0.3737,3041.0,3040.9,0.24333299]
[1763535528213,0.3737,3041.0,3040.9,0.77650299]
[1763535528516,0.3737,3041.0,3040.9,0.24333299]
[1763535530015,0.3737,3041.0,3040.9,0.77650299]
[1763535533320,1.70226527,3041.4,3041.0,0.53315]
[1763535533511,1.03248981,3041.3,3041.2,0.2384]
[1763535533817,1.56558981,3041.3,3041.2,0.2384]
[1763535534416,0.2323,3041.1,3041.0,0.77155]
[1763535537815,0.2323,3041.1,3041.0,0.2384]
[1763535538726,0.2323,3041.1,3041.0,0.77156]
[1763535540224,0.2323,3041.1,3041.0,0.2384]
[1763535541024,0.2378,3041.2,3041.1,0.245]
[1763535541219,0.77092,3041.2,3041.1,0.245]
[1763535542124,0.2378,3041.1,3041.0,0.77815]
[1763535543822,0.2378,3041.1,3041.0,0.53315]
[1763535544029,0.91826,3041.0,3040.9,0.00493299]
[1763535544427,0.3851,3041.0,3040.9,0.00493299]
[1763535544730,3.2078,3041.3,3040.9,0.78310299]
[1763535544927,0.3851,3041.0,3040.9,0.78310299]
[1763535546531,0.1473,3041.0,3040.9,0.78310299]
[1763535547634,3.7409,3041.3,3040.9,0.78310299]
[1763535548436,3.2078,3041.3,3040.9,0.00493299]
[1763535548640,0.2378,3041.2,3041.1,0.77813]
[1763535548930,3.4456,3041.3,3041.2,0.77812]
[1763535551739,0.2378,3041.3,3041.2,0.77812]
[1763535552834,0.00493299,3041.4,3041.3,0.7781]
[1763535555140,0.00493299,3041.4,3041.1,2.33221668]
[1763535555141,0.2378,3041.2,3041.1,0.245]
[1763535555639,0.77094,3041.1,3041.0,2.33221668]
[1763535555843,0.3851,3041.0,3040.9,5.54494967]
[1763535556243,0.91826,3041.0,3040.9,0.00493299]
[1763535556536,0.3851,3041.0,3040.9,0.00493299]
[1763535557842,0.3851,3041.0,3040.9,0.24993299]
[1763535557843,0.1473,3041.0,3040.9,0.24993299]
[1763535558034,3.74091,3041.3,3040.9,0.24993299]
[1763535558239,3.74091,3041.3,3040.9,0.78309299]
[1763535558636,3.2078,3041.3,3041.0,0.53315]
[1763535558847,3.4456,3041.3,3041.2,0.245]
[1763535560349,3.97871,3041.3,3040.9,0.00493299]
[1763535560540,0.3851,3041.0,3040.9,0.24993299]
[1763535560846,0.1473,3041.0,3040.9,0.78310299]
[1763535561046,0.3851,3041.0,3040.9,0.53810299]
[1763535561443,0.3851,3041.0,3040.9,0.78310299]
[1763535561650,0.3851,3041.0,3040.9,0.00493299]
[1763535561846,0.3851,3041.0,3040.9,0.24993299]
[1763535562149,0.1473,3041.0,3040.9,0.24993299]
[1763535562446,0.3851,3041.0,3040.9,0.78310299]
[1763535563048,3.7409,3041.3,3041.0,0.53316]
[1763535563350,0.2439,3041.1,3041.0,0.76736]
[1763535564249,0.2439,3041.1,3041.0,0.2342]
[1763535565244,0.2439,3041.1,3041.0,0.76736]
[1763535565445,3.4517,3041.3,3041.2,0.2342]
[1763535565646,0.24883299,3041.4,3041.3,0.2342]
[1763535565839,0.00493299,3041.4,3041.3,0.2342]
[1763535566651,0.0024882,3041.7,3041.6,0.2342]
[1763535569851,3.8856,3042.5,3041.5,0.1036]
[1763535570047,3.3527,3042.5,3042.1,0.53296]
[1763535570654,0.53291,3042.4,3041.9,3.2078]
[1763535570851,0.3959,3042.0,3041.9,3.45092193]
[1763535571253,0.1473,3042.0,3041.9,3.45092193]
[1763535572350,0.3959,3042.0,3041.9,3.21142193]
[1763535572551,0.53688421,3042.4,3042.0,0.53298]
[1763535572757,0.00396421,3042.4,3041.9,3.74441193]
[1763535573357,0.2486,3042.2,3042.1,0.77246]
[1763535574465,0.2486,3042.2,3042.1,0.53296]
[1763535575166,0.3959,3042.0,3041.9,3.74440193]
[1763535575359,0.3959,3042.0,3041.9,3.98390193]
[1763535580665,0.1473,3042.0,3041.9,3.98390193]
[1763535580862,0.3959,3042.0,3041.9,3.98390193]
[1763535581462,0.3959,3042.0,3041.9,0.77610193]
[1763535582164,0.1473,3042.0,3041.9,0.77610193]
[1763535582464,0.2486,3042.2,3042.1,0.77245]
[1763535584167,0.25256421,3042.4,3042.3,0.2395]
[1763535584468,0.25256421,3042.4,3042.3,0.77243]
[1763535584864,0.25256421,3042.4,3042.3,0.53293]
[1763535589870,0.25256421,3042.4,3042.3,0.77243]
[1763535590465,0.00396421,3042.4,3041.9,0.00362193]
[1763535590672,0.25256421,3042.4,3042.3,0.77243]
[1763535591666,0.2486,3042.2,3042.1,0.2395]
[1763535592371,0.2486,3042.2,3042.1,0.77246]
[1763535594172,0.00396421,3042.4,3042.3,0.2395]
[1763535594675,0.25256421,3042.4,3042.3,0.2395]
[1763535594875,0.25256421,3042.4,3041.9,0.00362193]
[1763535595072,1.5865714,3042.0,3041.9,0.00362193]
[1763535600086,0.3959,3042.0,3041.9,0.00362193]
[1763535600587,0.2279,3041.3,3041.2,2.3458376]